fUSD/lending_fUSD_20240713
["ID","MTS","AMOUNT","RATE_DAILY","PERIOD"]
[331955925,1720896424286,299.83686717,0.00011199,2]
[331955949,1720896456081,378.80523673,0.00011199,2]
[331955952,1720896501662,161.26726908,0.00011199,2]
[331955953,1720896512310,665.63745664,0.00011199,2]
[331955955,1720896548076,276.40082024,0.00011199,2]
[331955980,1720896552293,203.31981496,0.00011199,2]
[331955996,1720896631727,-550.03682925,0.0001126,2]
[331955997,1720896631737,-500.0,0.0001126,2]
[331955998,1720896631747,-130.81322502,0.0001126,2]
[331955999,1720896631815,-369.18677498,0.0001126,2]
[331956000,1720896631825,-227.34202992,0.00012302,2]
[331956001,1720896631835,-250.0,0.00012463,2]
[331956002,1720896631844,-666.28,0.00012475,2]
[331956003,1720896631853,-250.0,0.00012489,2]
[331956004,1720896631862,-150.0,0.00012575,2]
[331956005,1720896631871,-181.49,0.00012609,2]
[331956006,1720896631880,-640.0,0.00012662,2]
[331956007,1720896631893,-360.0,0.00012737,2]
[331956008,1720896631902,-467.68,0.00012881,2]
[331956009,1720896631912,-400.0,0.00012904,2]
[331956010,1720896631921,-89.49049567,0.00013,2]
[331956011,1720896632042,-359.16532702,0.00013,2]
[331956012,1720896632053,-801.34417731,0.00013,2]
[331956013,1720896632062,-300.0,0.00013063,2]
[331956014,1720896632072,-204.19316804,0.00013064,2]
[331956016,1720896637829,-734.16683196,0.00013064,2]
[331956017,1720896637841,-400.0,0.000132,4]
[331956018,1720896637852,-184.39,0.00013238,2]
[331956019,1720896637861,-1620.24316804,0.00013287,2]
[331956183,1720896639858,-5198.16634652,0.00013287,2]
[331956186,1720896639876,-3181.59048544,0.00013287,2]
[331956188,1720896639886,-136.84293148,0.000133,4]
[331956196,1720896639950,-663.15706852,0.000133,4]
[331956198,1720896639960,-2292.44911069,0.00013352,2]
[331956200,1720896639970,-480.33026249,0.00013352,2]
[331956209,1720896640043,-1812.1188482,0.00013352,2]
[331956210,1720896640052,-969.91810947,0.00013352,2]
[331956212,1720896640060,-150.0,0.00013395,2]
[331956214,1720896640069,-636.152798,0.00013396,2]
[331956217,1720896640080,-410.68078463,0.00013396,2]
[331956219,1720896640091,-3140.04385146,0.00013396,2]
[331956240,1720896640290,-2272.02822291,0.00013396,2]
[331956242,1720896640300,-333.500795,0.00013396,2]
[331956244,1720896640309,-422.43023584,0.00013396,2]
[331956247,1720896640323,-696.37678912,0.00013396,2]
[331956249,1720896640334,-443.23700073,0.00013396,2]
[331956251,1720896640346,-4330.10643031,0.00013396,2]
[331956253,1720896640355,-618.927599,0.00013396,2]
[331956255,1720896640364,-427.52024,0.00013396,2]
[331956257,1720896640373,-305.543022,0.00013396,2]
[331956259,1720896640381,-904.762851,0.00013396,2]
[331956261,1720896640391,-203.40351,0.00013396,2]
[331956263,1720896640401,-1200.0,0.000134,4]
[331956265,1720896640410,-1700.0,0.000135,4]
[331956267,1720896640420,-647.26467047,0.00013516,2]
[331956269,1720896640430,-685.51816159,0.00013516,2]
[331956271,1720896640439,-6458.905657,0.00013563,2]
[331956273,1720896640448,-333.500795,0.00013563,2]
[331956275,1720896640457,-5892.150456,0.00013563,2]
[331956277,1720896640466,-618.927599,0.00013563,2]
[331956279,1720896640476,-427.52024,0.00013563,2]
[331956281,1720896640484,-305.543022,0.00013563,2]
[331956283,1720896640498,-904.762851,0.00013563,2]
[331956285,1720896640509,-193.29265507,0.00013573,2]
[331956287,1720896640519,-276.40082024,0.00013574,2]
[331956289,1720896640531,-11027.31132882,0.00013574,2]
[331956400,1720896641664,7423.62318076,0.00011199,2]
[331956620,1720896643916,-361.6920653,0.00013516,2]
[331956621,1720896643927,-369.60670203,0.00013516,2]
[331956622,1720896643937,-20907.41531699,0.00013574,2]
[331956623,1720896643958,-4526.756931,0.00013574,2]
[331956624,1720896643972,-854.36157171,0.00013574,2]
[331956625,1720896643983,-89297.1059861,0.00013574,2]
[331956626,1720896643994,-2100.0,0.000136,4]
[331956627,1720896644004,-355.34,0.00013673,2]
[331956628,1720896644016,-689.87,0.00013698,2]
[331956629,1720896644026,-538.04,0.00013698,2]
[331956630,1720896644036,-540.3,0.00013698,2]
[331956631,1720896644046,-500.0,0.00013698,2]
[331956632,1720896644055,-541.6,0.00013698,2]
[331956633,1720896644064,-734.29,0.00013698,2]
[331956634,1720896644074,-500.0,0.00013698,2]
[331956635,1720896644084,-500.0,0.00013698,2]
[331956636,1720896644093,-1222.74,0.00013698,2]
[331956637,1720896644103,-715.42,0.00013698,2]
[331956638,1720896644112,-700.46,0.00013698,2]
[331956639,1720896644121,-500.0,0.00013698,2]
[331956640,1720896644132,-725.44,0.00013698,2]
[331956641,1720896644141,-157.01,0.00013699,2]
[331956642,1720896644151,-445.66,0.00013699,2]
[331956643,1720896644161,-304.46,0.00013699,2]
[331956644,1720896644171,-400.0,0.000137,5]
[331956645,1720896644182,-194.41801419,0.00013709,2]
[331956646,1720896644192,-6458.905657,0.00013731,2]
[331956647,1720896644201,-333.500795,0.00013731,2]
[331956648,1720896644211,-5892.150456,0.00013731,2]
[331956649,1720896644221,-618.927599,0.00013731,2]
[331956650,1720896644231,-427.52024,0.00013731,2]
[331956651,1720896644240,-305.543022,0.00013731,2]
[331956652,1720896644251,-904.762851,0.00013731,2]
[331956653,1720896644261,-689.87,0.00013753,2]
[331956654,1720896644271,-538.04,0.00013753,2]
[331956655,1720896644281,-540.3,0.00013753,2]
[331956656,1720896644291,-500.0,0.00013753,2]
[331956657,1720896644301,-541.6,0.00013753,2]
[331956658,1720896644310,-734.29,0.00013753,2]
[331956659,1720896644320,-500.0,0.00013753,2]
[331956660,1720896644330,-500.0,0.00013753,2]
[331956661,1720896644340,-1222.74,0.00013753,2]
[331956662,1720896644350,-715.42,0.00013753,2]
[331956663,1720896644360,-700.46,0.00013753,2]
[331956664,1720896644369,-500.0,0.00013753,2]
[331956665,1720896644379,-725.44,0.00013753,2]
[331956666,1720896644389,-220.7573998,0.00013759,2]
[331956668,1720896644399,-407.14562287,0.00013759,2]
[331956670,1720896644408,-310.90789258,0.00013759,2]
[331956672,1720896644418,-1087.8401,0.000138,2]
[331956674,1720896644427,-400.0,0.000138,5]
[331956676,1720896644437,-689.87,0.00013808,2]
[331956678,1720896644447,-538.04,0.00013808,2]
[331956680,1720896644456,-540.3,0.00013808,2]
[331956681,1720896644466,-500.0,0.00013808,2]
[331956683,1720896644476,-541.6,0.00013808,2]
[331956685,1720896644485,-734.29,0.00013808,2]
[331956687,1720896644496,-500.0,0.00013808,2]
[331956689,1720896644509,-500.0,0.00013808,2]
[331956691,1720896644519,-1222.74,0.00013808,2]
[331956693,1720896644528,-715.42,0.00013808,2]
[331956695,1720896644539,-700.46,0.00013808,2]
[331956697,1720896644549,-500.0,0.00013808,2]
[331956699,1720896644559,-725.44,0.00013808,2]
[331956701,1720896644569,-426.49183253,0.00013817,2]
[331956703,1720896644581,-426.4918325,0.00013838,2]
[331956705,1720896644591,-426.4918325,0.00013859,2]
[331956707,1720896644602,-3004.67928,0.0001386,2]
[331956709,1720896644611,-606.17794464,0.00013862,2]
[331956711,1720896644622,-689.87,0.00013863,2]
[331956713,1720896644631,-538.04,0.00013863,2]
[331956715,1720896644642,-540.3,0.00013863,2]
[331956717,1720896644652,-500.0,0.00013863,2]
[331956719,1720896644661,-541.6,0.00013863,2]
[331956721,1720896644671,-734.29,0.00013863,2]
[331956722,1720896644681,-500.0,0.00013863,2]
[331956724,1720896644691,-625.33491526,0.00013863,2]
[331956726,1720896644700,-1222.74,0.00013863,2]
[331956728,1720896644710,-715.42,0.00013863,2]
[331956730,1720896644719,-700.46,0.00013863,2]
[331956732,1720896644730,-500.0,0.00013863,2]
[331956734,1720896644739,-426.4918325,0.00013879,2]
[331956736,1720896644749,-457.53,0.00013897,2]
[331956738,1720896644759,-500.0,0.00013898,2]
[331956740,1720896644768,-529.51,0.00013898,2]
[331956742,1720896644777,-500.0,0.00013898,2]
[331956744,1720896644787,-536.97,0.00013898,2]
[331956746,1720896644796,-500.0,0.00013898,2]
[331956748,1720896644807,-291.91,0.00013898,2]
[331956750,1720896644816,-500.0,0.00013898,2]
[331956752,1720896644826,-520.42,0.00013898,2]
[331956754,1720896644836,-2202.51,0.00013898,2]
[331956756,1720896644845,-500.0,0.00013898,2]
[331956758,1720896644855,-540.9,0.00013898,2]
[331956760,1720896644865,-500.0,0.00013898,2]
[331956762,1720896644875,-500.0,0.00013898,2]
[331956764,1720896644884,-500.0,0.00013898,2]
[331956765,1720896644894,-904.05,0.00013898,2]
[331956767,1720896644903,-6458.905657,0.00013898,2]
[331956769,1720896644914,-333.500795,0.00013898,2]
[331956772,1720896644924,-5892.150456,0.00013898,2]
[331956773,1720896644934,-618.927599,0.00013898,2]
[331956775,1720896644943,-427.52024,0.00013898,2]
[331956777,1720896644953,-305.543022,0.00013898,2]
[331956779,1720896644963,-904.762851,0.00013898,2]
[331956781,1720896644973,-10425.7633,0.00013899,2]
[331956783,1720896644983,-1033.7973,0.00013899,2]
[331956785,1720896644992,-20126.5029,0.000139,2]
[331956787,1720896645001,-10000.0,0.000139,2]
[331956789,1720896645011,-167.27843963,0.000139,2]
[331956791,1720896645020,-426.4918325,0.000139,2]
[331956793,1720896645030,-400.0,0.000139,5]
[331956795,1720896645040,-689.87,0.00013917,2]
[331956797,1720896645049,-538.04,0.00013917,2]
[331956799,1720896645059,-540.3,0.00013917,2]
[331956801,1720896645068,-500.0,0.00013917,2]
[331956803,1720896645078,-541.6,0.00013917,2]
[331956805,1720896645088,-734.29,0.00013917,2]
[331956807,1720896645098,-500.0,0.00013917,2]
[331956809,1720896645108,-1222.74,0.00013917,2]
[331956811,1720896645118,-715.42,0.00013917,2]
[331956813,1720896645127,-700.46,0.00013917,2]
[331956815,1720896645137,-500.0,0.00013917,2]
[331956817,1720896645147,-500.0,0.00013952,2]
[331956819,1720896645157,-529.51,0.00013952,2]
[331956821,1720896645167,-500.0,0.00013952,2]
[331956823,1720896645178,-536.97,0.00013952,2]
[331956825,1720896645188,-500.0,0.00013952,2]
[331956827,1720896645198,-520.42,0.00013952,2]
[331956829,1720896645208,-540.9,0.00013952,2]
[331956831,1720896645219,-500.0,0.00013952,2]
[331956833,1720896645229,-500.0,0.00013953,2]
[331956835,1720896645239,-2202.51,0.00013953,2]
[331956837,1720896645250,-500.0,0.00013953,2]
[331956839,1720896645259,-500.0,0.00013953,2]
[331956841,1720896645269,-904.05,0.00013953,2]
[331956843,1720896645279,-689.87,0.00013972,2]
[331956845,1720896645290,-538.04,0.00013972,2]
[331956847,1720896645299,-540.3,0.00013972,2]
[331956849,1720896645309,-500.0,0.00013972,2]
[331956851,1720896645319,-541.6,0.00013972,2]
[331956852,1720896645328,-734.29,0.00013972,2]
[331956853,1720896645337,-500.0,0.00013972,2]
[331956854,1720896645346,-1222.74,0.00013972,2]
[331956855,1720896645355,-715.42,0.00013972,2]
[331956856,1720896645364,-700.46,0.00013972,2]
[331956857,1720896645374,-500.0,0.00013972,2]
[331956858,1720896645384,-735.376105,0.00013973,2]
[331956859,1720896645393,-152.0,0.0001398,2]
[331956860,1720896645403,-152.0,0.0001398,2]
[331956861,1720896645412,-209.076,0.0001398,2]
[331956862,1720896645422,-151.299,0.0001398,2]
[331956863,1720896645431,-154.668,0.0001398,2]
[331956865,1720896645442,-500.0,0.00013999,2]
[331956867,1720896645451,-645.99,0.00013999,2]
[331956869,1720896645462,-500.0,0.00013999,2]
[331956871,1720896645471,-563.42,0.00013999,2]
[331956873,1720896645480,-500.0,0.00013999,2]
[331956875,1720896645490,-533.65,0.00013999,2]
[331956877,1720896645504,-500.0,0.00013999,2]
[331956879,1720896645514,-741.34,0.00013999,2]
[331956881,1720896645524,-500.0,0.00013999,2]
[331956883,1720896645533,-500.0,0.00013999,2]
[331956885,1720896645545,-500.0,0.00013999,2]
[331956887,1720896645555,-500.0,0.00013999,2]
[331956905,1720896645723,-577.89,0.00013999,2]
[331956907,1720896645734,-500.0,0.00013999,2]
[331956909,1720896645744,-723.31,0.00013999,2]
[331956911,1720896645754,-500.0,0.00013999,2]
[331956913,1720896645763,-657.1,0.00013999,2]
[331956915,1720896645772,-562.45,0.00013999,2]
[331956917,1720896645782,-500.0,0.00013999,2]
[331956919,1720896645792,-500.0,0.00013999,2]
[331956921,1720896645801,-500.0,0.00013999,2]
[331956923,1720896645811,-500.0,0.00013999,2]
[331956925,1720896645820,-500.0,0.00013999,2]
[331956927,1720896645830,-505.57,0.00013999,2]
[331956929,1720896645840,-500.0,0.00013999,2]
[331956931,1720896645849,-500.0,0.00013999,2]
[331956933,1720896645859,-514.02,0.00013999,2]
[331956935,1720896645868,-500.0,0.00013999,2]
[331956937,1720896645878,-500.0,0.00013999,2]
[331956939,1720896645887,-300.0,0.00013999,2]
[331956941,1720896645897,-464.31908543,0.00013999,2]
[331956943,1720896645906,-150.0,0.00013999,2]
[331956945,1720896645916,-400.0,0.00013999,2]
[331956947,1720896645926,-540.0,0.00014,2]
[331956949,1720896645935,-31774.79222942,0.00014,2]
[331956952,1720896645949,-641.5247125,0.00014,2]
[331956955,1720896645960,-1757.24990833,0.00014,2]
[331956958,1720896645983,-518.145964,0.00013863,2]
[331956960,1720896645994,-207.294036,0.00013863,2]
[331956962,1720896646003,-362.435964,0.00014,2]
[331956964,1720896646014,-28189.41357277,0.00014,2]
[331956966,1720896646026,-3305.18574628,0.00014,2]
[331956971,1720896646063,-276.03969957,0.00013917,2]
[331956973,1720896646075,-449.40030043,0.00013917,2]
[331956975,1720896646086,-1831.57802135,0.00014,2]
[331957009,1720896646403,-255.99257949,0.00013352,2]
[331957012,1720896646416,-588.162686,0.00013352,2]
[331957014,1720896646429,-125.76284398,0.00013352,2]
[331957016,1720896646439,-725.44,0.00013972,2]
[331957017,1720896646449,-70984.9134976,0.00014,2]
[331957020,1720896646459,-340953.7756774,0.00014,2]
[331957023,1720896646479,-1219.7164009,0.00013352,2]
[331957040,1720896697101,47414.54154741,0.0001063,7]
[331957041,1720896697126,5867.57620119,0.0001063,7]
[331957042,1720896736438,113606.70657233,0.0001063,2]
[331957050,1720896786482,471.75,0.00010968,2]
[331957059,1720896954522,155.0,0.00010968,2]
[331957060,1720896963668,655.46456412,0.00011199,2]
[331957063,1720897150751,164.42527991,0.00011199,2]
[331957064,1720897167414,3075.09742481,0.00011199,2]
[331957065,1720897179729,171.69313147,5e-05,2]
[331957066,1720897214715,158.6746708,0.00011199,2]
[331957068,1720897219613,899.10221779,6.061e-05,2]
[331957069,1720897223115,459.03935982,5e-05,2]
[331957070,1720897225694,1108.442,0.0001116,2]
[331957071,1720897226073,157.11482821,6.061e-05,2]
[331957072,1720897226258,7560.61129184,5e-05,2]
[331957073,1720897228222,290.66575246,5e-05,2]
[331957075,1720897229076,1036.52241211,6.061e-05,2]
[331957076,1720897229471,950.77387773,5e-05,2]
[331957077,1720897233361,3865.46569832,0.00011199,2]
[331957079,1720897235006,1183.41926774,5e-05,2]
[331957080,1720897236507,7820.18595613,5e-05,2]
[331957082,1720897240750,6230.2551494,0.00011199,2]
[331957084,1720897252008,155.0,6.061e-05,2]
[331957085,1720897253572,1265.01058332,6.061e-05,2]
[331957087,1720897257220,158.53916036,6.061e-05,2]
[331957088,1720897258625,253.69968354,0.0001,2]
[331957090,1720897261867,307.35633759,0.0001,2]
[331957091,1720897264707,10528.28293915,0.00011199,2]
[331957093,1720897273762,2502.56527031,6.061e-05,2]
[331957094,1720897276707,242.37427876,7.347e-05,2]
[331957095,1720897288791,250.57983896,7.347e-05,2]
[331957096,1720897304405,424.94216003,7.347e-05,2]
[331957097,1720897307203,8731.42733075,7.347e-05,2]
[331957098,1720897309805,684.61138711,7.347e-05,2]
[331957099,1720897312785,155.13135445,6.061e-05,2]
[331957100,1720897316734,596.1,0.0001082,2]
[331957102,1720897331271,431.31007858,8.905e-05,2]
[331957103,1720897336540,2340.77884097,0.00011199,2]
[331957104,1720897338602,800.08194753,8.905e-05,2]
[331957105,1720897340041,3787.38361081,0.00011199,2]
[331957107,1720897344920,2380.94559053,0.00011199,2]
[331957108,1720897350778,250.57983896,8.905e-05,2]
[331957109,1720897356222,162.79,0.00010133,2]
[331957112,1720897367261,438.35174148,8.905e-05,2]
[331957113,1720897367892,155.0,8.905e-05,2]
[331957116,1720897383019,1216.34617587,0.00011199,2]
[331957118,1720897390197,388.42635038,0.0001,2]
[331957119,1720897393223,2223.2959686,0.00011199,2]
[331957121,1720897398720,299.9787386,0.00010133,2]
[331957123,1720897407240,411.02446308,0.00010133,2]
[331957124,1720897426968,2203.66073685,0.00011199,2]
[331957125,1720897442103,1631.50135618,0.00011199,2]
[331957126,1720897443928,1768.82779142,0.00011199,2]
[331957127,1720897453910,1929.80746129,0.00011199,2]
[331957128,1720897475336,790.88851185,0.00011199,2]
[331957129,1720897479184,299.91989156,0.00010133,2]
[331957130,1720897487629,757.04237542,0.00011199,2]
[331957131,1720897504103,1288.59799477,0.00011199,2]
[331957132,1720897515183,292.57856873,0.00011199,2]
[331957133,1720897522945,612.78116451,0.00011199,2]
[331957134,1720897526470,155.27560506,0.00011199,2]
[331957135,1720897526513,2171.57286584,0.00011199,2]
[331957136,1720897532022,527.47467871,0.00011199,2]
[331957137,1720897540642,180.0430689,0.00011199,2]
[331957138,1720897546305,176.32466843,0.00011199,2]
[331957139,1720897546919,476.13535636,0.00011199,2]
[331957140,1720897549506,237.89260728,0.00011199,2]
[331957141,1720897552754,413.59706917,0.00011199,2]
[331957142,1720897553945,305.87724342,0.00011199,2]
[331957144,1720897557362,155.0,0.00011199,2]
[331957147,1720897563861,155.74816455,0.00011199,2]
[331957149,1720897566782,171.30935062,0.00011199,2]
[331957150,1720897569746,305.87724342,0.00011199,2]
[331957151,1720897571504,162.07145473,0.00011199,2]
[331957160,1720897573654,544.74834431,0.00011199,2]
[331957161,1720897574372,205.54834643,0.00011199,2]
[331957163,1720897576349,298.51541728,0.00011199,2]
[331957164,1720897576398,297.23686,0.00011199,2]
[331957167,1720897580453,192.06634657,0.00011199,2]
[331957169,1720897583401,382.12258582,0.00011199,2]
[331957171,1720897585715,398.08119137,0.00011199,2]
[331957173,1720897590169,304.78291063,0.00011199,2]
[331957174,1720897594467,175.41039267,0.00011199,2]
[331957175,1720897596433,400.0,0.00011199,2]
[331957176,1720897599735,192.06723149,0.00011199,2]
[331957177,1720897600732,287.52276223,0.00011199,2]
[331957178,1720897603170,531.02179191,0.00011199,2]
[331957179,1720897604265,378.07593941,0.00011199,2]
[331957180,1720897605358,202.90766565,0.00011199,2]
[331957181,1720897609675,294.14505741,0.00011199,2]
[331957182,1720897613294,302.00290796,0.00011199,2]
[331957183,1720897613445,155.0,0.00011199,2]
[331957184,1720897628974,156.16906047,0.00011199,2]
[331957191,1720897641342,155.50465982,0.00011199,2]
[331957193,1720897698319,155.0,0.00011199,2]
[331957195,1720897713019,155.0,0.00011199,2]
[331957262,1720897831946,-500.0,0.0001126,2]
[331957263,1720897831962,-500.0,0.0001126,2]
[331957264,1720897831972,-377.4709,0.00012172,2]
[331957265,1720897831980,-756.38331006,0.00012302,2]
[331957266,1720897831990,-430.42388111,0.00012302,2]
[331957267,1720897832001,-505.38615579,0.00012302,2]
[331957268,1720897832015,-695.69131928,0.00012302,2]
[331957269,1720897832024,-193.69998713,0.00012302,2]
[331957270,1720897832035,-1318.5298823,0.00012314,2]
[331957271,1720897832044,-305.04773568,0.00012314,2]
[331957272,1720897832055,-193.69927417,0.00012314,2]
[331957273,1720897832067,-512.0,0.00012691,2]
[331957274,1720897832078,-250.0,0.00012692,2]
[331957275,1720897832088,-323.08,0.00012692,2]
[331957276,1720897832098,-14719.69996482,0.00012693,2]
[331957277,1720897832115,-826.29867666,0.00012693,2]
[331957278,1720897832126,-3241.14135852,0.00012693,2]
[331957279,1720897832136,-167.57,0.00012795,2]
[331957280,1720897832146,-488.0,0.00012885,2]
[331957281,1720897832156,-208.14,0.00012892,2]
[331957282,1720897832166,-500.0,0.00012904,2]
[331957283,1720897832176,-596.1,0.00013084,2]
[331957284,1720897832187,-838.41,0.00013096,2]
[331957285,1720897832196,-297.07578706,0.00013128,2]
[331957286,1720897832207,-176.13461349,0.00013128,2]
[331957287,1720897832218,-1904.31747652,0.00013128,2]
[331957288,1720897832227,-443.85598899,0.00013128,2]
[331957289,1720897832238,-413.41380836,0.00013128,2]
[331957290,1720897832247,-167.83449486,0.00013128,2]
[331957291,1720897832258,-10000.0,0.00013288,2]
[331957292,1720897832268,-848.31012541,0.00013294,2]
[331957293,1720897832278,-228.49,0.00013311,2]
[331957294,1720897832287,-1072.73270979,0.00013352,2]
[331957295,1720897832296,-722.42,0.0001337,2]
[331957296,1720897832306,-182.873427,0.00013396,2]
[331957297,1720897832315,-150.0,0.00013447,2]
[331957298,1720897832325,-17168.0,0.00013448,2]
[331957299,1720897832335,-347.22717478,0.00013472,2]
[331957300,1720897832344,-680.69368405,0.00013472,2]
[331957301,1720897832353,-155.0,0.00013472,2]
[331957302,1720897832363,-3268.9447,0.00013474,2]
[331957304,1720897832374,-155.0,0.00013516,2]
[331957305,1720897832383,-321.7773857,0.00013516,2]
[331957306,1720897832394,-544.76386976,0.00013543,2]
[331957307,1720897832404,-155.0,0.00013574,2]
[331957308,1720897832414,-1714.75837256,0.00013574,2]
[331957309,1720897832424,-387.93,0.00013699,2]
[331957310,1720897832434,-267.72,0.00013699,2]
[331957311,1720897832443,-452.8265396,0.00013699,2]
[331957312,1720897832452,-832.53,0.0001372,2]
[331957313,1720897832462,-194.4180142,0.00013724,2]
[331957314,1720897832471,-182.873427,0.00013731,2]
[331957315,1720897832480,-150.0,0.00013753,2]
[331957316,1720897832490,-452.8265396,0.00013753,2]
[331957317,1720897832500,-150.0,0.00013755,2]
[331957318,1720897832509,-150.0,0.00013784,2]
[331957319,1720897832519,-3505.662,0.00013798,2]
[331957320,1720897832529,-13258.85887355,0.000138,2]
[331957321,1720897832551,-26469.485378,0.000138,2]
[331957322,1720897832562,-331.9629089,0.000138,2]
[331957323,1720897832573,-2190.43928,0.000138,2]
[331957324,1720897832586,-531.58074942,0.000138,2]
[331957325,1720897832599,-619.14994573,0.000138,2]
[331957326,1720897832614,-412.61335126,0.000138,2]
[331957327,1720897832627,-716.18874666,0.000138,2]
[331957328,1720897832645,-641.43342479,0.000138,2]
[331957329,1720897832657,-3157.30609499,0.000138,2]
[331957330,1720897832947,-833.79793316,0.000138,2]
[331957331,1720897832959,-318.86689986,0.000138,2]
[331957336,1720897838185,-604.60675052,0.00013288,2]
[331957337,1720897838198,-128.96,0.00013288,2]
[331957338,1720897838207,-322.15409797,0.00013702,2]
[331957339,1720897838217,-166.50275554,0.00013799,2]
[331957340,1720897838227,-477.9074815,0.000138,2]
[331957341,1720897838238,-14754.6190542,0.000138,2]
[331957342,1720897838391,-283.96,0.000138,2]
[331957525,1720897840333,-494.228,0.000138,2]
[331957527,1720897840345,-539.06283141,0.000138,2]
[331957529,1720897840356,-60434.67705094,0.000138,2]
[331957531,1720897840367,-1004.97081072,0.000138,2]
[331957533,1720897840379,-5105.36060623,0.000138,2]
[331957536,1720897840391,-1544.78597104,0.000138,2]
[331957538,1720897840402,-2980.51312862,0.000138,2]
[331957540,1720897840413,-350.11499999,0.000138,2]
[331957542,1720897840424,-295.2409361,0.000138,2]
[331957544,1720897840435,-505.2624392,0.000138,2]
[331957805,1720897843089,-254.46884191,0.00013799,2]
[331957806,1720897843099,-500.0,0.00013799,2]
[331957807,1720897843109,-500.0,0.00013799,2]
[331957808,1720897843119,-500.0,0.00013799,2]
[331957809,1720897843128,-541.88827019,0.00013799,2]
[331957810,1720897843139,-2008.4751339,0.000138,2]
[331957811,1720897843156,-500.0,0.000138,2]
[331957853,1720897843862,-1225.27791041,0.000138,2]
[331957979,1720897845165,-15392.39694035,0.000138,2]
[331957981,1720897845175,-2992.66511614,0.000138,2]
[331957983,1720897845186,-4765.843978,0.000138,2]
[331958075,1720897846368,-392.25691706,0.000138,2]
[331958076,1720897846459,-15031.09902767,0.000138,2]
[331958077,1720897846471,-265.2567685,0.000138,2]
[331958078,1720897846482,-46836.96498286,0.000138,2]
[331958079,1720897846633,-305.69310851,0.000138,2]
[331958080,1720897846645,-790.68502548,0.000138,2]
[331958081,1720897846657,-1400.55359634,0.000138,2]
[331958082,1720897846669,-1502.98278456,0.000138,2]
[331958141,1720897880653,584.86,0.00010866,2]
[331958145,1720898149081,1251.52373192,0.00011199,2]
[331958146,1720898286937,453.09541711,0.00011199,2]
[331958148,1720898304679,276.45750032,0.00011199,2]
[331958150,1720898403677,285.04380365,0.00011199,2]
[331958152,1720898439719,299.91818426,0.00011199,2]
[331958153,1720898487244,227.34202992,0.00011199,2]
[331958154,1720898517290,227.34202992,0.00011199,2]
[331958155,1720898570730,299.79633498,0.00011199,2]
[331958156,1720898622464,580.22,0.0001063,2]
[331958157,1720898711559,1322.6467692,0.00011199,2]
[331958158,1720898755221,276.12408857,0.00011199,2]
[331958178,1720898910080,322.44306516,0.00011199,2]
[331958216,1720898957549,273.05483461,0.00011199,2]
[331958243,1720898989521,308.45407443,0.00011199,2]
[331958245,1720899009610,-500.0,0.0001126,2]
[331958247,1720899009663,-500.0,0.0001126,2]
[331958249,1720899009717,-113.00013604,0.0001126,2]
[331958250,1720899025565,1322.6467692,0.00011199,2]
[331958251,1720899032161,-386.99986396,0.0001126,2]
[331958252,1720899032171,-841.35993278,0.000118,2]
[331958253,1720899032180,-300.0,0.00012272,2]
[331958254,1720899032191,-899.00859541,0.00012302,2]
[331958255,1720899032201,-250.0,0.00012432,2]
[331958256,1720899032212,-178.94,0.00012465,2]
[331958257,1720899032224,-590.4,0.00012491,2]
[331958258,1720899032236,-466.85155981,0.00012498,2]